fUST/lending_fUST_20240409
["ID","MTS","AMOUNT","RATE_DAILY","PERIOD"]
[321928841,1712639452963,-2037.40904042,0.00036562,2]
[321928843,1712639452973,-151.0,0.00036711,2]
[321928845,1712639452982,-151.0,0.00036711,2]
[321928847,1712639452990,-773.296835,0.00036711,2]
[321928849,1712639452999,-773.296835,0.00036711,2]
[321928850,1712639453008,-151.0,0.00036711,2]
[321928852,1712639453018,-266.080331,0.00036711,2]
[321928854,1712639453027,-266.080331,0.00036711,2]
[321928856,1712639453036,-151.0,0.00036711,2]
[321928858,1712639453045,-500.0,0.00036712,5]
[321928861,1712639453055,-1287.33,0.00036712,5]
[321928862,1712639453069,-219.95292482,0.00036712,5]
[321928864,1712639453078,-522.27584338,0.00036712,5]
[321928866,1712639453088,-151.0,0.00036712,2]
[321928868,1712639453097,-500.0,0.00036712,5]
[321928870,1712639453106,-614.15701084,0.00036712,5]
[321928872,1712639453115,-500.0,0.00036712,5]
[321928874,1712639453124,-500.0,0.00036712,5]
[321928876,1712639453133,-500.0,0.00036712,5]
[321928878,1712639453142,-151.0,0.00036712,2]
[321928880,1712639453151,-527.96,0.00036712,5]
[321928882,1712639453160,-1961.66,0.00036712,5]
[321928884,1712639453169,-500.0,0.00036712,5]
[321928886,1712639453178,-865.32,0.00036712,5]
[321928888,1712639453188,-835.81,0.00036712,5]
[321928890,1712639453197,-500.0,0.00036712,5]
[321928892,1712639453206,-500.0,0.00036712,5]
[321928894,1712639453215,-500.0,0.00036712,5]
[321928896,1712639453225,-500.0,0.00036712,5]
[321928899,1712639453234,-500.0,0.00036712,5]
[321928901,1712639453244,-500.0,0.00036712,5]
[321928903,1712639453253,-500.0,0.00036712,5]
[321928905,1712639453262,-1267.08,0.00036712,5]
[321928907,1712639453272,-680.33,0.00036712,5]
[321928909,1712639453281,-1226.82,0.00036712,5]
[321928911,1712639453291,-500.0,0.00036712,5]
[321928913,1712639453300,-272.73735109,0.00036712,5]
[321928915,1712639453309,-554.84435422,0.00036712,5]
[321928917,1712639453317,-500.0,0.00036712,5]
[321928919,1712639453326,-513.18,0.00036712,5]
[321928921,1712639453335,-151.0,0.00036712,2]
[321928922,1712639453344,-1928.18,0.00036712,2]
[321928924,1712639453354,-500.0,0.00036712,5]
[321928927,1712639453365,-907.03,0.00036712,5]
[321928928,1712639453375,-525.12917169,0.00036712,5]
[321928931,1712639453386,-500.0,0.00036712,5]
[321928932,1712639453396,-248.59974576,0.00036712,5]
[321928934,1712639453407,-597.89,0.00036712,5]
[321928937,1712639453417,-500.0,0.00036712,5]
[321928939,1712639453427,-500.0,0.00036712,5]
[321928940,1712639453438,-300.0,0.00036712,5]
[321928942,1712639453449,-840.71,0.00036712,5]
[321928944,1712639453459,-500.0,0.00036712,5]
[321928946,1712639453470,-502.76,0.00036712,5]
[321928948,1712639453479,-500.0,0.00036712,5]
[321928950,1712639453489,-500.0,0.00036712,5]
[321928952,1712639453499,-500.0,0.00036712,5]
[321928955,1712639453509,-913.71,0.00036712,5]
[321928956,1712639453519,-500.0,0.00036712,5]
[321928958,1712639453528,-500.0,0.00036712,5]
[321928960,1712639453537,-1557.445902,0.00036712,2]
[321928962,1712639453547,-1557.445902,0.00036712,2]
[321928964,1712639453557,-365.63587067,0.00036712,5]
[321928967,1712639453567,-500.0,0.00036712,5]
[321928968,1712639453578,-540.23,0.00036712,5]
[321928970,1712639453588,-5915.35,0.00036712,5]
[321928973,1712639453599,-500.0,0.00036712,5]
[321928975,1712639453609,-231.278903,0.00036712,2]
[321928976,1712639453618,-500.0,0.00036712,5]
[321928978,1712639453629,-10395.06,0.00036712,5]
[321928980,1712639453639,-202.460987,0.00036712,2]
[321928982,1712639453650,-500.0,0.00036712,5]
[321928984,1712639453662,-3164.62,0.00036712,5]
[321928987,1712639453673,-500.0,0.00036712,5]
[321928988,1712639453684,-1615.82,0.00036712,5]
[321928990,1712639453693,-154.528505,0.00036712,2]
[321928992,1712639453703,-2100.67,0.00036712,5]
[321928994,1712639453712,-500.0,0.00036712,5]
[321928996,1712639453722,-154.528505,0.00036712,2]
[321928998,1712639453732,-500.0,0.00036712,5]
[321929000,1712639453743,-500.0,0.00036712,5]
[321929002,1712639453753,-1310.98,0.00036712,5]
[321929004,1712639453763,-500.0,0.00036712,5]
[321929006,1712639453773,-444.14668144,0.00036712,5]
[321929008,1712639453784,-625.99,0.00036712,5]
[321929010,1712639453795,-500.0,0.00036712,5]
[321929012,1712639453804,-500.0,0.00036712,5]
[321929013,1712639453814,-500.0,0.00036712,5]
[321929014,1712639453827,-266.080331,0.00036712,2]
[321929015,1712639453836,-993.73,0.00036712,5]
[321929016,1712639453844,-266.080331,0.00036712,2]
[321929020,1712639453900,-521.0,0.00036712,5]
[321929022,1712639453910,-653.71,0.00036712,5]
[321929024,1712639453920,-4755.24,0.00036712,5]
[321929026,1712639453929,-500.0,0.00036712,5]
[321929028,1712639453938,-2418.29,0.00036712,5]
[321929030,1712639453947,-1040.33,0.00036712,5]
[321929032,1712639453955,-500.0,0.00036712,5]
[321929034,1712639453964,-151.0,0.00036712,2]
[321929036,1712639453973,-2624.12,0.00036712,5]
[321929038,1712639453982,-5641.18,0.00036712,5]
[321929040,1712639453991,-1846.43,0.00036712,5]
[321929042,1712639454000,-500.0,0.00036712,5]
[321929044,1712639454009,-2504.96,0.00036712,5]
[321929046,1712639454018,-3365.38,0.00036712,5]
[321929048,1712639454027,-500.0,0.00036712,5]
[321929050,1712639454036,-817.39,0.00036712,5]
[321929052,1712639454045,-1252.57,0.00036712,5]
[321929054,1712639454054,-500.0,0.00036712,5]
[321929056,1712639454063,-500.0,0.00036712,5]
[321929058,1712639454072,-500.0,0.00036712,5]
[321929060,1712639454082,-839.1,0.00036712,5]
[321929062,1712639454091,-500.0,0.00036712,5]
[321929064,1712639454100,-568.55001336,0.00036712,5]
[321929066,1712639454109,-3128.32,0.00036712,5]
[321929068,1712639454118,-151.0,0.00036712,2]
[321929070,1712639454128,-500.0,0.00036712,5]
[321929071,1712639454139,-977.93,0.00036712,5]
[321929073,1712639454149,-500.0,0.00036712,5]
[321929075,1712639454158,-500.0,0.00036712,5]
[321929077,1712639454167,-500.0,0.00036712,5]
[321929079,1712639454175,-500.0,0.00036712,5]
[321929081,1712639454184,-28978.62,0.00036712,5]
[321929083,1712639454195,-6228.95,0.00036712,5]
[321929085,1712639454204,-647.996007,0.00036712,2]
[321929087,1712639454214,-1972.48,0.00036712,5]
[321929089,1712639454223,-500.0,0.00036712,5]
[321929091,1712639454232,-500.0,0.00036712,5]
[321929092,1712639454241,-647.996007,0.00036712,2]
[321929093,1712639454250,-151.0,0.00036712,2]
[321929094,1712639454259,-500.0,0.00036712,5]
[321929095,1712639454269,-500.0,0.00036712,5]
[321929096,1712639454278,-500.0,0.00036712,5]
[321929097,1712639454287,-6567.31,0.00036712,5]
[321929098,1712639454296,-151.0,0.00036712,2]
[321929099,1712639454305,-8899.76,0.00036712,5]
[321929100,1712639454314,-289.42774088,0.00036712,5]
[321929101,1712639454323,-1602.23,0.00036712,5]
[321929102,1712639454332,-500.0,0.00036712,5]
[321929103,1712639454341,-1086.3,0.00036712,5]
[321929104,1712639454352,-28390.72,0.00036712,5]
[321929105,1712639454361,-3658.23,0.00036712,5]
[321929106,1712639454371,-3094.83,0.00036712,5]
[321929107,1712639454380,-505.64,0.00036712,5]
[321929108,1712639454389,-500.0,0.00036712,5]
[321929109,1712639454398,-500.0,0.00036712,5]
[321929110,1712639454407,-151.0,0.00036712,2]
[321929111,1712639454417,-1578.15,0.00036712,5]
[321929112,1712639454425,-1221.28,0.00036712,5]
[321929113,1712639454434,-2057.31,0.00036712,5]
[321929114,1712639454444,-1406.05,0.00036712,5]
[321929115,1712639454453,-500.0,0.00036712,5]
[321929116,1712639454462,-335.738886,0.00036712,2]
[321929117,1712639454472,-335.738886,0.00036712,2]
[321929118,1712639454481,-632.95,0.00036819,5]
[321929119,1712639454490,-773.296835,0.00036819,2]
[321929120,1712639454499,-2190.06,0.00036819,5]
[321929121,1712639454508,-773.296835,0.00036819,2]
[321929122,1712639454518,-500.0,0.00036819,5]
[321929123,1712639454527,-3438.14,0.00036819,5]
[321929124,1712639454537,-500.0,0.00036819,5]
[321929125,1712639454546,-500.0,0.00036819,5]
[321929126,1712639454555,-500.0,0.00036819,5]
[321929127,1712639454564,-500.0,0.00036819,5]
[321929128,1712639454573,-485.65004601,0.00036819,5]
[321929129,1712639454583,-1052.79,0.00036819,5]
[321929130,1712639454592,-500.0,0.00036819,5]
[321929131,1712639454601,-556.6,0.00036819,5]
[321929132,1712639454610,-500.0,0.00036819,5]
[321929133,1712639454619,-500.0,0.00036819,5]
[321929134,1712639454628,-534.03718189,0.00036819,5]
[321929135,1712639454638,-278.434216,0.00036819,2]
[321929136,1712639454647,-1557.445902,0.00036819,2]
[321929137,1712639454656,-705.17,0.00036819,5]
[321929138,1712639454665,-1557.445902,0.00036819,2]
[321929139,1712639454719,-1840.23,0.00036819,5]
[321929140,1712639454729,-500.0,0.00036819,5]
[321929141,1712639454738,-500.0,0.00036819,5]
[321929142,1712639454748,-165.19145522,0.00036819,5]
[321929143,1712639454757,-500.0,0.00036819,5]
[321929144,1712639454766,-500.0,0.00036819,5]
[321929145,1712639454776,-500.0,0.00036819,5]
[321929146,1712639454785,-500.0,0.00036819,5]
[321929147,1712639454795,-500.0,0.00036819,5]
[321929148,1712639454804,-150.0,0.0003682,2]
[321929149,1712639454814,-500.0,0.0003682,5]
[321929150,1712639454827,-151.0,0.0003682,2]
[321929151,1712639454837,-151.0,0.0003682,2]
[321929152,1712639454846,-500.0,0.0003682,5]
[321929153,1712639454856,-826.12,0.0003682,5]
[321929154,1712639454866,-500.0,0.0003682,5]
[321929155,1712639454875,-595.56,0.0003682,5]
[321929156,1712639454885,-1140.37,0.0003682,5]
[321929157,1712639454895,-500.0,0.0003682,5]
[321929158,1712639454904,-500.0,0.0003682,5]
[321929159,1712639454914,-500.0,0.0003682,5]
[321929160,1712639454924,-1952.48,0.0003682,5]
[321929161,1712639454933,-500.0,0.0003682,5]
[321929162,1712639454943,-500.0,0.0003682,5]
[321929163,1712639454951,-3471.98,0.0003682,5]
[321929164,1712639454960,-500.0,0.0003682,5]
[321929165,1712639454969,-500.0,0.0003682,5]
[321929166,1712639454978,-621.25131055,0.0003682,5]
[321929167,1712639454988,-515.12,0.0003682,5]
[321929168,1712639454997,-335.738886,0.0003682,2]
[321929169,1712639455007,-500.0,0.0003682,5]
[321929170,1712639455016,-335.738886,0.0003682,2]
[321929171,1712639455025,-500.0,0.00036821,5]
[321929172,1712639455035,-500.0,0.00036821,5]
[321929173,1712639455046,-500.0,0.00036821,5]
[321929174,1712639455055,-151.0,0.00036821,2]
[321929175,1712639455064,-500.0,0.00036821,5]
[321929176,1712639455073,-506.03855013,0.00036821,5]
[321929177,1712639455084,-500.0,0.00036821,5]
[321929178,1712639455100,-500.0,0.00036821,5]
[321929179,1712639455118,-328.50496403,0.00036821,5]
[321929180,1712639455134,-2037.40904042,0.00036949,2]
[321929181,1712639455153,-1152.0,0.0003697,2]
[321929182,1712639455168,-3337.3145426,0.00036985,4]
[321929183,1712639455187,-151.0,0.00036985,2]
[321929184,1712639455204,-570.26213355,0.00036985,2]
[321929185,1712639455681,-203.03470145,0.00036985,2]
[321929186,1712639455692,-773.296835,0.00036985,2]
[321929187,1712639455701,-272.329856,0.00036985,2]
[321929188,1712639455711,-231.308863,0.00036985,2]
[321929189,1712639455720,-500.0,0.00036986,5]
[321929190,1712639455729,-1287.33,0.00036986,5]
[321929191,1712639455738,-500.0,0.00036986,5]
[321929192,1712639455747,-500.0,0.00036986,5]
[321929193,1712639455757,-500.0,0.00036986,5]
[321929194,1712639455766,-500.0,0.00036986,5]
[321929195,1712639455775,-527.96,0.00036986,5]
[321929196,1712639455784,-1961.66,0.00036986,5]
[321929197,1712639455793,-162.02617253,0.00036986,5]
[321929198,1712639455805,-337.97382747,0.00036986,5]
[321929199,1712639456022,-865.32,0.00036986,5]
[321929200,1712639456032,-151.0,0.00036986,2]
[321929201,1712639456041,-151.0,0.00036986,2]
[321929202,1712639456050,-835.81,0.00036986,5]
[321929203,1712639456060,-500.0,0.00036986,5]
[321929204,1712639456069,-500.0,0.00036986,5]
[321929205,1712639456078,-500.0,0.00036986,5]
[321929206,1712639456087,-500.0,0.00036986,5]
[321929207,1712639456096,-500.0,0.00036986,5]
[321929208,1712639456109,-500.0,0.00036986,5]
[321929209,1712639456119,-500.0,0.00036986,5]
[321929210,1712639456128,-1267.08,0.00036986,5]
[321929211,1712639456137,-680.33,0.00036986,5]
[321929212,1712639456147,-1226.82,0.00036986,5]
[321929213,1712639456156,-500.0,0.00036986,5]
[321929214,1712639456165,-500.0,0.00036986,5]
[321929215,1712639456174,-513.18,0.00036986,5]
[321929216,1712639456184,-1928.18,0.00036986,2]
[321929217,1712639456194,-500.0,0.00036986,5]
[321929218,1712639456203,-907.03,0.00036986,5]
[321929219,1712639456212,-500.0,0.00036986,5]
[321929220,1712639456221,-597.89,0.00036986,5]
[321929221,1712639456233,-230.49997395,0.00036986,5]
[321929222,1712639456268,-0.00483419,0.0003589,5]
[321929223,1712639456279,-488.62091358,0.0003589,5]
[321929226,1712639720474,178.169643,0.00020523,2]
[321929227,1712639781129,154.98450155,0.00020523,2]
[321929228,1712639786354,16047.23018457,0.00020523,2]
[321929229,1712639789738,384.88102707,0.00020523,2]
[321929230,1712639790003,154.98450155,0.00020523,2]
[321929231,1712639794940,19135.52112826,0.00020523,2]
[321929232,1712639801126,161.145578,0.00020523,2]
[321929233,1712639804013,227.47360783,0.00020523,2]
[321929234,1712639808327,9794.70364288,0.00020523,2]
[321929235,1712639808951,15943.76060599,0.00020523,2]
[321929236,1712639844239,384.88102707,0.00020523,2]
[321929237,1712639878247,262.32218405,0.00020523,2]
[321929238,1712639898808,978.189118,0.00020418,2]
[321929240,1712639925055,24900.0,0.00020415,2]
[321929242,1712640020876,1990.77,0.000262,10]
[321929243,1712640028492,1652.5402603,0.00020402,2]
[321929244,1712640088359,29271.5846379,0.00020393,2]
[321929245,1712640091430,250.0,0.00020392,2]
[321929246,1712640181702,1379.0563841,0.0002037,2]
[321929247,1712640399126,489.094559,0.00020338,2]
[321929249,1712640427170,-420.59784856,0.00021327,2]
[321929250,1712640434145,-447.77895,0.00021326,2]
[321929251,1712640434398,521.86048731,0.0002037,2]
[321929252,1712640443102,-205.70180304,0.00021324,2]
[321929253,1712640443126,-154.98450155,0.00021325,2]
[321929254,1712640443146,-72.11357474,0.00021325,2]
[321929255,1712640444101,-473.2366857,0.00021324,2]
[321929256,1712640444207,-797.95900064,0.00021325,2]
[321929257,1712640476338,24900.0,0.00020325,2]
[321929258,1712640550114,-271.89359431,0.0002121,2]
[321929259,1712640550152,-154.98450155,0.00021211,2]
[321929260,1712640550191,-598.94162905,0.00021211,2]
[321929261,1712640562094,-154.98450155,0.00021209,2]
[321929262,1712640562114,-154.98450155,0.00021209,2]
[321929263,1712640562137,-947.00758519,0.00021209,2]
[321929264,1712640562157,-3735.81357685,0.0002121,2]
[321929265,1712640562177,-1131.94892897,0.0002121,2]
[321929266,1712640562198,-1617.16242552,0.0002121,2]
[321929267,1712640562219,-886.76273511,0.00021211,2]
[321929268,1712640562240,-2935.70815242,0.00021211,2]
[321929269,1712640562261,-435.73017158,0.00021211,2]
[321929270,1712640562282,-868.54910044,0.00021211,2]
[321929271,1712640562303,-524.73312661,0.00021211,2]
[321929272,1712640562434,-154.98450155,0.00021211,2]
[321929273,1712640562454,-154.98450155,0.00021211,2]
[321929274,1712640562475,-1307.52332084,0.00021211,2]
[321929275,1712640562496,-9419.00851662,0.00021211,2]
[321929276,1712640562517,-211.40870572,0.00021212,2]
[321929277,1712640562539,-185.58568069,0.00021212,2]
[321929278,1712640562560,-277.03921209,0.00021212,2]
[321929279,1712640562581,-562.79218199,0.00021212,2]
[321929280,1712640562602,-407.69592082,0.00021212,2]
[321929281,1712640562625,-153.08227502,0.00021213,2]
[321929282,1712640562647,-300.0,0.00021213,2]
[321929283,1712640562668,-300.0,0.00021213,2]
[321929284,1712640562688,-1866.00896233,0.00021214,2]
[321929285,1712640562709,-303.81962515,0.00021215,2]
[321929286,1712640562733,-1963.97984376,0.00021215,2]
[321929287,1712640562756,-1930.68038705,0.00021216,2]
[321929288,1712640562778,-154.98450155,0.00021216,2]
[321929289,1712640562798,-3137.24198449,0.00021216,2]
[321929290,1712640562819,-193.0126642,0.00021217,2]
[321929291,1712640562842,-470.02690454,0.00021217,2]
[321929292,1712640562862,-689.18078323,0.00021217,2]
[321929293,1712640562883,-546.04585195,0.00021217,2]
[321929294,1712640562903,-781.78611462,0.00021217,2]
[321929295,1712640562925,-154.98450155,0.00021217,2]
[321929296,1712640562948,-186.51311299,0.00021218,2]
[321929297,1712640562970,-154.98450155,0.00021312,2]
[321929298,1712640562992,-283.34484323,0.00021312,2]
[321929299,1712640563013,-157.26509838,0.00021312,2]
[321929300,1712640563033,-282.7345517,0.00021312,2]
[321929301,1712640563055,-2616.08628475,0.00021312,2]
[321929302,1712640563077,-263.43758151,0.00021314,2]
[321929303,1712640563099,-3291.0761489,0.00021314,2]
[321929304,1712640563121,-5783.085097,0.00021314,2]
[321929305,1712640563144,-47598.75820091,0.00021314,2]
[321929306,1712640563164,-170.92149901,0.00021315,2]
[321929307,1712640563185,-1029.02845319,0.0002132,2]
[321929308,1712640563206,-1029.02845319,0.0002132,2]
[321929309,1712640563226,-1029.02845319,0.0002132,2]
[321929310,1712640563246,-1029.02845319,0.0002132,2]
[321929311,1712640563269,-1029.02845319,0.0002132,2]
[321929312,1712640563289,-500.0,0.00021322,2]
[321929313,1712640563310,-500.0,0.00021322,2]
[321929314,1712640563332,-443.02484357,0.00021322,2]
[321929315,1712640563352,-381.60502795,0.00021322,2]
[321929316,1712640563373,-500.0,0.00021322,2]
[321929317,1712640563393,-500.0,0.00021322,2]
[321929318,1712640563413,-500.0,0.00021322,2]
[321929319,1712640563434,-500.0,0.00021322,2]
[321929320,1712640563453,-508.02102082,0.00021322,2]
[321929321,1712640563474,-1969.7469522,0.00021327,2]
[321929322,1712640563494,-339.63660736,0.00021349,2]
[321929323,1712640563515,-579.21156351,0.00021377,2]
[321929324,1712640563536,-220.20205321,0.00021434,2]
[321929325,1712640563563,-3718.21894048,0.00022,2]
[321929326,1712640563587,-153.08227492,0.00022313,2]
[321929327,1712640563608,-638.05192735,0.00022996,2]
[321929328,1712640563628,-158.51515046,0.00022997,2]
[321929329,1712640563648,-242.74204017,0.00023,2]
[321929330,1712640563669,-420.0,0.0002307,2]
[321929331,1712640563690,-217.4057204,0.00023288,2]
[321929332,1712640563712,-420.0,0.00023334,2]
[321929333,1712640563733,-153.08227492,0.00023413,2]
[321929334,1712640563754,-978.2191023,0.00024248,2]
[321929335,1712640563776,-153.08227492,0.00024514,2]
[321929336,1712640564042,472.99966512,0.00021209,2]
[321929337,1712640566155,-886.79559656,0.00021208,2]
[321929338,1712640566176,-99.20886551,0.00021209,2]
[321929339,1712640568118,-263.43758151,0.00021208,2]
[321929340,1712640568142,-22173.69486629,0.00021209,2]
[321929341,1712640568162,-242.74204017,0.00023069,2]
[321929342,1712640568183,-162.59508915,0.00025,2]
[321929343,1712640592966,179.27377637,0.00021322,2]
[321929344,1712640592993,36.4266882,0.00021322,2]
[321929374,1712640632154,-173.00668686,0.00023068,2]
[321929375,1712640632163,-155.19997538,0.00025252,2]
[321929376,1712640632172,-637.91095511,0.0002546,2]
[321929377,1712640632181,-153.08227492,0.00025614,2]
[321929378,1712640632191,-153.08227492,0.00026714,2]
[321929379,1712640632200,-154.98450155,0.00027,2]
[321929380,1712640632209,-186.51311298,0.00027349,3]
[321929381,1712640632219,-200.64052974,0.0002739,14]
[321929382,1712640632229,-165.559223,0.00027397,2]
[321929383,1712640632239,-161.426683,0.00027397,2]
[321929384,1712640632248,-153.08227492,0.00027814,2]
[321929385,1712640632258,-153.08227492,0.00028915,2]
[321929386,1712640632268,-300.0,0.00029674,2]
[321929387,1712640632277,-153.08227492,0.00030015,2]
[321929388,1712640632287,-180.44679005,0.00030484,2]
[321929390,1712640637985,-69.55320995,0.00030484,2]
[321929391,1712640637996,-489.094559,0.00030506,2]
[321929393,1712640638005,-153.08227492,0.00031115,2]
[321929395,1712640638015,-276.37478336,0.00032053,4]
[321929397,1712640638024,-925.69177067,0.00032054,4]
[321929399,1712640638033,-153.08227492,0.00032215,2]
[321929400,1712640638043,-420.0,0.00032641,2]
[321929402,1712640638052,-153.08227492,0.00033316,2]
[321929404,1712640638062,-408.20295126,0.00033478,4]
[321929406,1712640638071,-212.97620983,0.00033478,4]
[321929408,1712640638081,-284.04240691,0.00033478,4]
[321929410,1712640638091,-249.34736369,0.00033478,4]
[321929412,1712640638100,-1191.47201074,0.00033478,4]
[321929414,1712640638110,-1756.74918347,0.00033478,4]
[321929416,1712640638119,-705.01571713,0.00033478,4]
[321929417,1712640638129,-365.30809216,0.00033479,4]
[321929419,1712640638138,-2507.11376897,0.0003348,4]
[321929421,1712640638147,-186.51311298,0.00033481,6]
[321929423,1712640638157,-2594.0043588,0.00033831,4]
[321929425,1712640638172,-7769.97997678,0.00033832,4]
[321929427,1712640638182,-400.0,0.00033832,2]
[321929429,1712640638191,-924.88179764,0.00033833,4]
[321929431,1712640638201,-153.08227492,0.00034416,2]
[321929432,1712640638211,-155.00155653,0.00034902,4]
[321929434,1712640638220,-380.49806329,0.00034902,4]
[321929436,1712640638229,-857.26746477,0.00034902,4]
[321929438,1712640638238,-150.98490151,0.00034935,2]
[321929440,1712640638248,-668.76456763,0.00035,4]
[321929442,1712640638257,-165.559223,0.00035225,2]
[321929443,1712640638266,-2000.0,0.00035516,2]
[321929445,1712640638276,-1638.34113903,0.00035516,2]
[321929447,1712640638285,-151.96365907,0.00035516,2]
[321929449,1712640638295,-153.08227492,0.00035516,2]
[321929451,1712640638305,-301.96980302,0.00035522,4]
[321929453,1712640638315,-232.88797737,0.00035529,30]
[321929455,1712640638325,-313.00965131,0.00035612,4]
[321929457,1712640638334,-241.96526573,0.00035612,4]
[321929458,1712640638344,-179.48021003,0.00035612,4]
[321929460,1712640638354,-1936.22663734,0.00035612,4]
[321929462,1712640638364,-309.5287172,0.00035612,4]
[321929464,1712640638374,-1453.28326546,0.00035613,4]
[321929466,1712640638386,-156.54810628,0.00035613,4]
[321929468,1712640638395,-207.63262723,0.00035613,4]
[321929470,1712640638404,-1399.78697588,0.00035613,4]
[321929471,1712640638413,-500.0,0.00035613,7]
[321929473,1712640638423,-197.06839396,0.00035613,7]
[321929475,1712640638432,-196.73945297,0.00035613,7]
[321929477,1712640638441,-318.65438978,0.00035613,7]
[321929479,1712640638450,-500.0,0.00035613,7]
[321929481,1712640638459,-155.11189512,0.00035614,4]
[321929483,1712640638469,-228.33008256,0.00035614,4]
[321929485,1712640638478,-169.798953,0.00035614,4]
[321929486,1712640638487,-420.31645112,0.00035614,4]
[321929488,1712640638496,-528.85784847,0.00035614,4]
[321929490,1712640638506,-1615.90107094,0.00035614,4]
[321929492,1712640638515,-48274.1652896,0.00035614,4]
[321929494,1712640638524,-1050.38441504,0.00035614,4]
[321929496,1712640638533,-211.29667729,0.00035614,4]
[321929498,1712640638542,-404.42766975,0.00035614,4]
[321929499,1712640638551,-30560.71473675,0.00035614,4]
[321929501,1712640638560,-1131.41963851,0.00035614,4]
[321929503,1712640638569,-386.72837658,0.00035614,4]
[321929505,1712640638579,-1165.44467243,0.00035614,4]
[321929507,1712640638589,-301.61332653,0.00035614,4]
[321929509,1712640638599,-414.36763206,0.00035614,4]
[321929511,1712640638607,-377.17786942,0.00035614,2]
[321929513,1712640638617,-156.54809607,0.00035614,4]
[321929515,1712640638627,-472.75465607,0.00035614,4]
[321929516,1712640638636,-223.96377737,0.00035614,4]
[321929518,1712640638645,-682.32292248,0.00035614,4]
[321929520,1712640638654,-623.09309692,0.00035614,4]
[321929522,1712640638664,-284.02551928,0.00035614,4]
[321929524,1712640638673,-1170.85095037,0.00035614,4]
[321929526,1712640638682,-630.14163825,0.00035614,4]
[321929528,1712640638691,-154.98450155,0.00035614,4]
[321929530,1712640638701,-232.26707371,0.00035614,4]
[321929532,1712640638710,-283.72062249,0.00035614,4]
[321929534,1712640638720,-269.94118748,0.00035614,4]
[321929535,1712640638729,-911.26776146,0.00035614,4]
[321929537,1712640638739,-4215.10439375,0.00035614,4]
[321929539,1712640638748,-156.92957174,0.00035614,4]
[321929541,1712640638758,-527.7226697,0.00035614,4]
[321929543,1712640638768,-304.63314691,0.00035614,4]
[321929545,1712640638777,-154.98450155,0.00035614,4]
[321929547,1712640638787,-438.72394941,0.00035614,4]
[321929549,1712640638796,-504.82079389,0.00035615,7]
[321929551,1712640638805,-781.62971038,0.00035615,4]
[321929553,1712640638814,-210640.6169875,0.00035616,3]
[321929555,1712640638824,-3406.58437181,0.00035616,4]
[321929556,1712640638834,-189.92890927,0.00035616,4]
[321929558,1712640638843,-157.27052097,0.00035616,4]
[321929560,1712640638852,-299.67972178,0.00035616,4]
[321929562,1712640638862,-831.48176232,0.00035616,4]
[321929564,1712640638871,-155.09155082,0.00035616,4]
[321929566,1712640638882,-500.0,0.00035616,2]
[321929568,1712640638891,-500.0,0.00035616,2]
[321929570,1712640638899,-500.0,0.00035616,2]
[321929572,1712640638908,-500.0,0.00035616,2]
[321929574,1712640638918,-315.00595375,0.00035616,2]
[321929576,1712640638927,-545.71,0.00035616,2]
[321929577,1712640638936,-522.00500082,0.00035616,2]
[321929584,1712640639000,-500.0,0.00035616,2]
[321929586,1712640639010,-500.0,0.00035616,2]
[321929588,1712640639019,-500.0,0.00035616,2]
[321929590,1712640639028,-500.0,0.00035616,2]
[321929592,1712640639037,-500.0,0.00035616,2]
[321929594,1712640639046,-500.0,0.00035616,2]
[321929596,1712640639055,-500.0,0.00035616,2]
[321929598,1712640639064,-500.0,0.00035616,2]